[Event "*** SCC Grand Prix: Titled Tuesday Blitz"]
[Site "Chess.com"]
[Date "2020.06.23"]
[Round "3"]
[White "budda"]
[Black "kuban1991"]
[Result "0-1"]
[WhiteElo "2336"]
[BlackElo "2729"]
[TimeControl "180+1"]
[EndTime "10:26:26 PDT"]
[Termination "kuban1991 won by resignation"]

1. e4 {[%clk 0:03:00.9]} 1... e6 {[%clk 0:02:58.7]} 2. d4 {[%clk 0:03:00.7]}
2... d5 {[%clk 0:02:58.8]} 3. Nc3 {[%clk 0:03:01.6]} 3... Bb4 {[%clk 0:02:58.3]}
4. e5 {[%clk 0:03:01.6]} 4... c5 {[%clk 0:02:58.4]} 5. Bd2 {[%clk 0:03:02.3]}
5... Nc6 {[%clk 0:02:58.1]} 6. Nb5 {[%clk 0:03:02]} 6... Bxd2+ {[%clk 0:02:59]}
7. Qxd2 {[%clk 0:03:02.7]} 7... Nxd4 {[%clk 0:02:59.8]} 8. Nd6+ {[%clk
0:02:59.1]} 8... Kf8 {[%clk 0:02:59.2]} 9. f4 {[%clk 0:02:59.1]} 9... Ne7 {[%clk
0:02:54.6]} 10. Bd3 {[%clk 0:02:57.2]} 10... Ndf5 {[%clk 0:02:52.4]} 11. Bxf5
{[%clk 0:02:56.8]} 11... Nxf5 {[%clk 0:02:53.3]} 12. Nxf5 {[%clk 0:02:56.7]}
12... exf5 {[%clk 0:02:54.2]} 13. O-O-O {[%clk 0:02:55.1]} 13... Be6 {[%clk
0:02:50.4]} 14. Nf3 {[%clk 0:02:52.9]} 14... h6 {[%clk 0:02:40.5]} 15. h3 {[%clk
0:02:49.1]} 15... d4 {[%clk 0:02:40.6]} 16. Kb1 {[%clk 0:02:35.3]} 16... Qd5
{[%clk 0:02:32.1]} 17. b3 {[%clk 0:02:33.9]} 17... a5 {[%clk 0:02:32.4]} 18. c3
{[%clk 0:02:27]} 18... a4 {[%clk 0:02:31.5]} 19. cxd4 {[%clk 0:01:40.2]} 19...
axb3 {[%clk 0:02:16.1]} 20. dxc5 {[%clk 0:01:40.2]} 20... Qe4+ {[%clk
0:01:53.3]} 21. Qd3 {[%clk 0:01:40.5]} 21... Rxa2 {[%clk 0:01:49.6]} 22. Qxe4
{[%clk 0:00:33.7]} 22... fxe4 {[%clk 0:01:50.5]} 23. Rd8+ {[%clk 0:00:34.2]}
23... Ke7 {[%clk 0:01:49.9]} 24. Rxh8 {[%clk 0:00:35.1]} 24... exf3 {[%clk
0:01:50]} 25. g4 {[%clk 0:00:35.9]} 25... Bd5 {[%clk 0:01:40.7]} 26. Rf1 {[%clk
0:00:35.6]} 26... Be4+ {[%clk 0:01:40.4]} 0-1

[Event "*** SCC Grand Prix: Titled Tuesday Blitz"]
[Site "Chess.com"]
[Date "2020.06.23"]
[Round "3"]
[White "BillieKimbah"]
[Black "Rodalquilar"]
[Result "1-0"]
[WhiteElo "2855"]
[BlackElo "2641"]
[TimeControl "180+1"]
[EndTime "10:26:29 PDT"]
[Termination "BillieKimbah won by resignation"]

1. d4 {[%clk 0:03:00.9]} 1... Nf6 {[%clk 0:03:00]} 2. Nf3 {[%clk 0:03:00.4]}
2... d5 {[%clk 0:02:57.8]} 3. Bg5 {[%clk 0:02:59.9]} 3... Ne4 {[%clk 0:02:52.3]}
4. Bf4 {[%clk 0:02:59.8]} 4... c5 {[%clk 0:02:51.4]} 5. e3 {[%clk 0:02:59.4]}
5... Nc6 {[%clk 0:02:49.9]} 6. Nbd2 {[%clk 0:02:58.3]} 6... Bf5 {[%clk
0:02:48.6]} 7. c3 {[%clk 0:02:51.5]} 7... e6 {[%clk 0:02:42.2]} 8. Qb3 {[%clk
0:02:41.1]} 8... Qc8 {[%clk 0:02:22.2]} 9. Nxe4 {[%clk 0:02:36.2]} 9... Bxe4
{[%clk 0:02:22.1]} 10. Nd2 {[%clk 0:02:35.3]} 10... Bg6 {[%clk 0:02:11.2]} 11.
Be2 {[%clk 0:02:28.3]} 11... Be7 {[%clk 0:02:09.4]} 12. O-O {[%clk 0:02:28.2]}
12... O-O {[%clk 0:02:09.7]} 13. Rac1 {[%clk 0:02:28.2]} 13... c4 {[%clk
0:02:08.4]} 14. Qd1 {[%clk 0:02:25.7]} 14... b5 {[%clk 0:02:08.4]} 15. Bf3
{[%clk 0:02:23.6]} 15... Bd3 {[%clk 0:02:00.5]} 16. Be2 {[%clk 0:02:22]} 16...
Bg6 {[%clk 0:01:58.7]} 17. Bf3 {[%clk 0:02:13.8]} 17... Bd3 {[%clk 0:01:58.7]}
18. Re1 {[%clk 0:02:07.7]} 18... f5 {[%clk 0:01:58.4]} 19. Be2 {[%clk
0:02:04.9]} 19... Bxe2 {[%clk 0:01:56.4]} 20. Qxe2 {[%clk 0:02:05.8]} 20... a5
{[%clk 0:01:55.2]} 21. f3 {[%clk 0:02:01]} 21... b4 {[%clk 0:01:38.4]} 22. b3
{[%clk 0:02:00.6]} 22... bxc3 {[%clk 0:01:33.9]} 23. Rxc3 {[%clk 0:02:01.5]}
23... Bb4 {[%clk 0:01:33.2]} 24. Rcc1 {[%clk 0:01:54.1]} 24... c3 {[%clk
0:01:33.1]} 25. Nb1 {[%clk 0:01:53.9]} 25... c2 {[%clk 0:01:32.9]} 26. Rxc2
{[%clk 0:01:53.9]} 26... Bxe1 {[%clk 0:01:32.5]} 27. Qxe1 {[%clk 0:01:54.8]}
27... Qd7 {[%clk 0:01:21.8]} 28. Nc3 {[%clk 0:01:46.6]} 28... Nb4 {[%clk
0:01:21.9]} 29. Rd2 {[%clk 0:01:46.6]} 29... Rfc8 {[%clk 0:01:05.1]} 30. Na4
{[%clk 0:01:46.1]} 30... Rc6 {[%clk 0:00:47.2]} 31. Nc5 {[%clk 0:01:44.2]} 31...
Na6 {[%clk 0:00:47.5]} 32. Nxd7 {[%clk 0:01:43.8]} 1-0

[Event "*** SCC Grand Prix: Titled Tuesday Blitz"]
[Site "Chess.com"]
[Date "2020.06.23"]
[Round "3"]
[White "Bubar"]
[Black "2007checkmate"]
[Result "0-1"]
[WhiteElo "2262"]
[BlackElo "2451"]
[TimeControl "180+1"]
[EndTime "10:26:29 PDT"]
[Termination "2007checkmate won by resignation"]

1. d4 {[%clk 0:03:00.9]} 1... Nf6 {[%clk 0:02:59.5]} 2. Nf3 {[%clk 0:02:59.6]}
2... d5 {[%clk 0:02:59.3]} 3. c4 {[%clk 0:02:58.2]} 3... c6 {[%clk 0:02:58.6]}
4. Nc3 {[%clk 0:02:58.1]} 4... dxc4 {[%clk 0:02:58.5]} 5. e4 {[%clk 0:02:57.6]}
5... b5 {[%clk 0:02:57.8]} 6. Qc2 {[%clk 0:02:57.7]} 6... Bg4 {[%clk 0:02:52.4]}
7. a4 {[%clk 0:02:54.7]} 7... Bxf3 {[%clk 0:02:44.4]} 8. gxf3 {[%clk 0:02:54.1]}
8... Qxd4 {[%clk 0:02:45]} 9. axb5 {[%clk 0:02:52.8]} 9... e6 {[%clk 0:02:44.6]}
10. Be3 {[%clk 0:02:50.6]} 10... Qd7 {[%clk 0:02:39]} 11. b6 {[%clk 0:02:42.6]}
11... c5 {[%clk 0:02:24.3]} 12. Bxc4 {[%clk 0:02:30.8]} 12... Nc6 {[%clk
0:02:16.3]} 13. Nb5 {[%clk 0:02:16.6]} 13... Bd6 {[%clk 0:01:47.1]} 14. b7
{[%clk 0:02:03.7]} 14... Rb8 {[%clk 0:01:42.7]} 15. Rd1 {[%clk 0:02:03.1]} 15...
Nd4 {[%clk 0:01:36.2]} 16. Bxd4 {[%clk 0:02:02]} 16... cxd4 {[%clk 0:01:36.2]}
17. Rxd4 {[%clk 0:02:02]} 17... Bb4+ {[%clk 0:01:36.3]} 18. Kf1 {[%clk
0:01:59.6]} 18... Qxb7 {[%clk 0:01:36.5]} 19. Qa4 {[%clk 0:01:56.3]} 19... O-O
{[%clk 0:01:32.5]} 20. Qxa7 {[%clk 0:01:27.2]} 20... Qxa7 {[%clk 0:01:24.2]} 21.
Nxa7 {[%clk 0:01:26.7]} 21... Bc5 {[%clk 0:01:25.1]} 22. Nc6 {[%clk 0:01:14.5]}
22... Bxd4 {[%clk 0:01:23.6]} 23. Nxd4 {[%clk 0:01:15.4]} 23... Rxb2 {[%clk
0:01:22.3]} 24. e5 {[%clk 0:01:12.1]} 24... Nh5 {[%clk 0:01:19.1]} 25. Kg2
{[%clk 0:01:08.4]} 25... Rb4 {[%clk 0:01:18]} 26. Rc1 {[%clk 0:01:07.9]} 26...
Rc8 {[%clk 0:01:17.8]} 27. Nxe6 {[%clk 0:00:59.2]} 27... Rbxc4 {[%clk
0:01:15.5]} 0-1

[Event "*** SCC Grand Prix: Titled Tuesday Blitz"]
[Site "Chess.com"]
[Date "2020.06.23"]
[Round "3"]
[White "Bastiandash"]
[Black "Riptide27"]
[Result "1-0"]
[WhiteElo "2226"]
[BlackElo "2542"]
[TimeControl "180+1"]
[EndTime "10:26:31 PDT"]
[Termination "Bastiandash won by resignation"]

1. Nf3 {[%clk 0:03:00.9]} 1... d5 {[%clk 0:02:58.1]} 2. d4 {[%clk 0:02:58.9]}
2... c6 {[%clk 0:02:55.9]} 3. c3 {[%clk 0:02:58.8]} 3... Bf5 {[%clk 0:02:53.6]}
4. Bg5 {[%clk 0:02:58.5]} 4... h6 {[%clk 0:02:52.5]} 5. Bh4 {[%clk 0:02:58.1]}
5... Nd7 {[%clk 0:02:53]} 6. e3 {[%clk 0:02:57.6]} 6... Ngf6 {[%clk 0:02:52]} 7.
Bd3 {[%clk 0:02:58]} 7... Bxd3 {[%clk 0:02:47.7]} 8. Qxd3 {[%clk 0:02:58.9]}
8... Qb6 {[%clk 0:02:47.8]} 9. Nbd2 {[%clk 0:02:48.2]} 9... Qxb2 {[%clk
0:02:29.6]} 10. Rb1 {[%clk 0:02:32.4]} 10... Qxa2 {[%clk 0:02:29.4]} 11. Rxb7
{[%clk 0:02:31]} 11... e6 {[%clk 0:02:26.2]} 12. O-O {[%clk 0:02:22.5]} 12...
Bd6 {[%clk 0:02:25.1]} 13. e4 {[%clk 0:02:11.4]} 13... dxe4 {[%clk 0:02:03.8]}
14. Nxe4 {[%clk 0:02:12.3]} 14... Nxe4 {[%clk 0:02:04.2]} 15. Qxe4 {[%clk
0:02:13.2]} 15... Qd5 {[%clk 0:02:04.4]} 16. Qg4 {[%clk 0:02:06.5]} 16... g5
{[%clk 0:02:01.7]} 17. Bg3 {[%clk 0:02:05.9]} 17... Nf6 {[%clk 0:02:00]} 18. Qh3
{[%clk 0:01:54]} 18... Be7 {[%clk 0:00:42.3]} 19. Ne5 {[%clk 0:01:44.5]} 19...
c5 {[%clk 0:00:42.2]} 20. Rfb1 {[%clk 0:01:33.4]} 20... cxd4 {[%clk 0:00:42.4]}
21. cxd4 {[%clk 0:01:32.7]} 21... Qxd4 {[%clk 0:00:42.6]} 22. Rxe7+ {[%clk
0:01:26]} 22... Kxe7 {[%clk 0:00:41.7]} 23. Nc6+ {[%clk 0:01:25.9]} 1-0

[Event "*** SCC Grand Prix: Titled Tuesday Blitz"]
[Site "Chess.com"]
[Date "2020.06.23"]
[Round "3"]
[White "zala02"]
[Black "nekotyanof"]
[Result "1-0"]
[WhiteElo "2182"]
[BlackElo "2335"]
[TimeControl "180+1"]
[EndTime "10:26:37 PDT"]
[Termination "zala02 won by resignation"]

1. d4 {[%clk 0:03:00.9]} 1... Nf6 {[%clk 0:02:59.8]} 2. c4 {[%clk 0:02:58.4]}
2... g6 {[%clk 0:03:00.7]} 3. Nc3 {[%clk 0:02:57.6]} 3... d5 {[%clk 0:03:01.6]}
4. cxd5 {[%clk 0:02:57.3]} 4... Nxd5 {[%clk 0:03:02.5]} 5. e4 {[%clk 0:02:57.5]}
5... Nxc3 {[%clk 0:03:03.4]} 6. bxc3 {[%clk 0:02:58.1]} 6... Bg7 {[%clk
0:03:03.9]} 7. Bc4 {[%clk 0:02:58.4]} 7... c5 {[%clk 0:03:04.5]} 8. Ne2 {[%clk
0:02:58]} 8... Nc6 {[%clk 0:03:05]} 9. Be3 {[%clk 0:02:57.9]} 9... cxd4 {[%clk
0:03:05.6]} 10. cxd4 {[%clk 0:02:57.6]} 10... O-O {[%clk 0:03:06.3]} 11. O-O
{[%clk 0:02:56.7]} 11... Qc7 {[%clk 0:03:06.9]} 12. Rc1 {[%clk 0:02:55.2]} 12...
Rd8 {[%clk 0:03:07.1]} 13. Qd2 {[%clk 0:02:47.8]} 13... b6 {[%clk 0:03:06.2]}
14. Bb5 {[%clk 0:02:12.5]} 14... Bb7 {[%clk 0:03:00.8]} 15. d5 {[%clk
0:02:12.4]} 15... Rac8 {[%clk 0:02:34.4]} 16. Bxc6 {[%clk 0:02:09.7]} 16... Bxc6
{[%clk 0:02:31]} 17. Rxc6 {[%clk 0:02:07.6]} 17... Qxc6 {[%clk 0:02:31.2]} 18.
dxc6 {[%clk 0:02:08.5]} 18... Rxd2 {[%clk 0:02:32.1]} 19. Bxd2 {[%clk
0:02:09.2]} 19... Rxc6 {[%clk 0:02:33]} 20. Rc1 {[%clk 0:02:06.4]} 20... Rxc1+
{[%clk 0:02:29.8]} 21. Nxc1 {[%clk 0:02:04.9]} 21... Be5 {[%clk 0:02:21.2]} 22.
g3 {[%clk 0:02:03.4]} 22... Bd6 {[%clk 0:02:06.7]} 23. Kf1 {[%clk 0:02:02.4]}
23... e5 {[%clk 0:02:05.8]} 24. Ke2 {[%clk 0:02:01.1]} 24... f6 {[%clk
0:02:05.8]} 25. Nd3 {[%clk 0:01:58.4]} 25... Kf7 {[%clk 0:02:01.3]} 26. Bb4
{[%clk 0:01:57.9]} 26... Bc7 {[%clk 0:02:00.7]} 27. Ke3 {[%clk 0:01:55.9]} 27...
Ke6 {[%clk 0:02:00.9]} 28. f4 {[%clk 0:01:55.4]} 28... g5 {[%clk 0:01:55]} 29.
fxg5 {[%clk 0:01:52.5]} 29... fxg5 {[%clk 0:01:55.9]} 30. Bf8 {[%clk 0:01:41.6]}
30... h5 {[%clk 0:01:51.1]} 31. h3 {[%clk 0:01:35.4]} 31... a5 {[%clk
0:01:49.7]} 32. Bh6 {[%clk 0:01:19.5]} 32... Bd8 {[%clk 0:01:49]} 33. Bf8 {[%clk
0:01:16.1]} 33... g4 {[%clk 0:01:46.7]} 34. hxg4 {[%clk 0:01:14.6]} 34... hxg4
{[%clk 0:01:47.6]} 35. Nb2 {[%clk 0:01:12.5]} 35... Bg5+ {[%clk 0:01:47.5]} 36.
Ke2 {[%clk 0:01:11.6]} 36... b5 {[%clk 0:01:48.3]} 37. Bc5 {[%clk 0:01:10.4]}
37... Kd7 {[%clk 0:01:48.2]} 38. Bb6 {[%clk 0:01:07]} 38... Kc6 {[%clk
0:01:48.4]} 39. Bxa5 {[%clk 0:01:06.8]} 39... Be7 {[%clk 0:01:48.4]} 40. Nd3
{[%clk 0:01:05.2]} 40... Bd6 {[%clk 0:01:48]} 41. Bc3 {[%clk 0:01:01.8]} 1-0

[Event "*** SCC Grand Prix: Titled Tuesday Blitz"]
[Site "Chess.com"]
[Date "2020.06.23"]
[Round "3"]
[White "PavelShkapenko"]
[Black "mamey78"]
[Result "1/2-1/2"]
[WhiteElo "2650"]
[BlackElo "2330"]
[TimeControl "180+1"]
[EndTime "10:26:50 PDT"]
[Termination "Game drawn by agreement"]

1. e4 {[%clk 0:03:00.9]} 1... e5 {[%clk 0:02:58.8]} 2. Nf3 {[%clk 0:03:00.6]}
2... Nc6 {[%clk 0:02:58.4]} 3. Bc4 {[%clk 0:02:59.9]} 3... Nf6 {[%clk
0:02:57.5]} 4. Ng5 {[%clk 0:03:00]} 4... d5 {[%clk 0:02:56.7]} 5. exd5 {[%clk
0:03:00.6]} 5... Na5 {[%clk 0:02:56.8]} 6. Bb5+ {[%clk 0:03:01]} 6... c6 {[%clk
0:02:57.1]} 7. dxc6 {[%clk 0:03:01.7]} 7... bxc6 {[%clk 0:02:58]} 8. Bd3 {[%clk
0:03:02.4]} 8... h6 {[%clk 0:02:54.9]} 9. Ne4 {[%clk 0:03:02.3]} 9... Nd5 {[%clk
0:02:53.1]} 10. O-O {[%clk 0:03:01.5]} 10... Be7 {[%clk 0:02:51.4]} 11. Ng3
{[%clk 0:03:01.2]} 11... O-O {[%clk 0:02:48.5]} 12. Bf5 {[%clk 0:03:01.3]} 12...
Ba6 {[%clk 0:02:16.8]} 13. d3 {[%clk 0:02:59.2]} 13... g6 {[%clk 0:02:16]} 14.
Be4 {[%clk 0:02:59]} 14... Bg5 {[%clk 0:02:11.6]} 15. Nd2 {[%clk 0:02:45.3]}
15... f5 {[%clk 0:01:57.3]} 16. Bxd5+ {[%clk 0:02:45.3]} 16... cxd5 {[%clk
0:01:57.5]} 17. Nf3 {[%clk 0:02:45.3]} 17... e4 {[%clk 0:01:48.5]} 18. Nxg5
{[%clk 0:02:44.1]} 18... hxg5 {[%clk 0:01:49.4]} 19. Re1 {[%clk 0:02:41.7]}
19... f4 {[%clk 0:01:37.9]} 20. Nf1 {[%clk 0:02:26.7]} 20... f3 {[%clk
0:01:10.8]} 21. dxe4 {[%clk 0:02:19.7]} 21... fxg2 {[%clk 0:01:04.9]} 22. Kxg2
{[%clk 0:02:19.3]} 22... Bb7 {[%clk 0:00:51.4]} 23. Ng3 {[%clk 0:01:39.9]} 23...
Qf6 {[%clk 0:00:47.4]} 24. Be3 {[%clk 0:01:39.6]} 24... dxe4 {[%clk 0:00:43.5]}
25. Qd4 {[%clk 0:01:38.5]} 25... Qxd4 {[%clk 0:00:35.2]} 26. Bxd4 {[%clk
0:01:38.3]} 26... e3+ {[%clk 0:00:36.1]} 27. Kg1 {[%clk 0:01:38.5]} 27... Rxf2
{[%clk 0:00:32.8]} 1/2-1/2

[Event "*** SCC Grand Prix: Titled Tuesday Blitz"]
[Site "Chess.com"]
[Date "2020.06.23"]
[Round "3"]
[White "argentum049"]
[Black "dosto07"]
[Result "1-0"]
[WhiteElo "2446"]
[BlackElo "2167"]
[TimeControl "180+1"]
[EndTime "10:26:54 PDT"]
[Termination "argentum049 won by resignation"]

1. d4 {[%clk 0:03:00.9]} 1... d5 {[%clk 0:02:58.6]} 2. c4 {[%clk 0:02:59.9]}
2... dxc4 {[%clk 0:02:59.5]} 3. e3 {[%clk 0:02:59.2]} 3... Nf6 {[%clk
0:02:58.9]} 4. Bxc4 {[%clk 0:02:59.3]} 4... e6 {[%clk 0:02:59.3]} 5. Nf3 {[%clk
0:02:59.7]} 5... c5 {[%clk 0:03:00]} 6. O-O {[%clk 0:02:59.1]} 6... a6 {[%clk
0:03:00]} 7. Bb3 {[%clk 0:02:58.7]} 7... Nc6 {[%clk 0:02:58.2]} 8. Nc3 {[%clk
0:02:50.6]} 8... Be7 {[%clk 0:02:56.5]} 9. dxc5 {[%clk 0:02:46.6]} 9... Qxd1
{[%clk 0:02:51.1]} 10. Rxd1 {[%clk 0:02:45.8]} 10... Bxc5 {[%clk 0:02:52]} 11.
Bd2 {[%clk 0:02:46.2]} 11... Ke7 {[%clk 0:02:43]} 12. Rac1 {[%clk 0:02:46.7]}
12... Rd8 {[%clk 0:02:32.8]} 13. Nd5+ {[%clk 0:02:40.7]} 13... Nxd5 {[%clk
0:02:16.9]} 14. Rxc5 {[%clk 0:02:39.4]} 14... Nf6 {[%clk 0:02:03.3]} 15. Kf1
{[%clk 0:02:35.5]} 15... Ne4 {[%clk 0:01:58.9]} 16. Rh5 {[%clk 0:02:33.6]} 16...
Nxd2+ {[%clk 0:01:50.3]} 17. Rxd2 {[%clk 0:02:31.8]} 17... Rxd2 {[%clk
0:01:43.9]} 18. Nxd2 {[%clk 0:02:32.7]} 18... h6 {[%clk 0:01:44.1]} 19. Nc4
{[%clk 0:02:28]} 19... Bd7 {[%clk 0:01:42.2]} 20. Ke2 {[%clk 0:02:22.1]} 20...
Rd8 {[%clk 0:01:36.7]} 21. Bc2 {[%clk 0:02:19]} 21... Nb4 {[%clk 0:01:33.3]} 22.
Bb3 {[%clk 0:02:11.2]} 22... Bb5 {[%clk 0:01:26.6]} 23. a4 {[%clk 0:02:05.4]}
23... Bc6 {[%clk 0:01:17.2]} 24. Ne5 {[%clk 0:02:04.5]} 24... Bxg2 {[%clk
0:01:03.6]} 25. f3 {[%clk 0:02:03.1]} 25... f6 {[%clk 0:00:56.6]} 26. Ng6+
{[%clk 0:01:58.9]} 26... Kf7 {[%clk 0:00:52.1]} 27. Nf4 {[%clk 0:01:59.8]} 27...
Bh1 {[%clk 0:00:50.7]} 28. Nxe6 {[%clk 0:01:54.9]} 28... Rd3 {[%clk 0:00:42.8]}
29. Nc5+ {[%clk 0:01:53.5]} 29... Rxb3 {[%clk 0:00:40.2]} 30. Nd3 {[%clk
0:01:54.4]} 30... Rxb2+ {[%clk 0:00:37.1]} 31. Nxb2 {[%clk 0:01:51.6]} 31... Nd5
{[%clk 0:00:24.1]} 32. Rxd5 {[%clk 0:01:47.4]} 1-0

[Event "*** SCC Grand Prix: Titled Tuesday Blitz"]
[Site "Chess.com"]
[Date "2020.06.23"]
[Round "3"]
[White "ZverevLev"]
[Black "IwkooO"]
[Result "1-0"]
[WhiteElo "2344"]
[BlackElo "2511"]
[TimeControl "180+1"]
[EndTime "10:27:00 PDT"]
[Termination "ZverevLev won by resignation"]

1. e4 {[%clk 0:03:00.9]} 1... c5 {[%clk 0:03:00.2]} 2. Nf3 {[%clk 0:02:57.9]}
2... e6 {[%clk 0:03:00.5]} 3. d4 {[%clk 0:02:57.2]} 3... cxd4 {[%clk 0:03:01.4]}
4. Nxd4 {[%clk 0:02:57]} 4... Nc6 {[%clk 0:03:01.8]} 5. Nc3 {[%clk 0:02:55.8]}
5... a6 {[%clk 0:03:01]} 6. Be3 {[%clk 0:02:40.2]} 6... Nf6 {[%clk 0:03:00.4]}
7. f4 {[%clk 0:02:23.6]} 7... Bb4 {[%clk 0:02:55.5]} 8. Bd3 {[%clk 0:02:22.9]}
8... e5 {[%clk 0:02:27.2]} 9. Nf5 {[%clk 0:02:13]} 9... d5 {[%clk 0:02:19]} 10.
fxe5 {[%clk 0:02:05.6]} 10... Nxe5 {[%clk 0:02:10.5]} 11. Nxg7+ {[%clk 0:02:04]}
11... Ke7 {[%clk 0:02:03.5]} 12. O-O {[%clk 0:01:59.9]} 12... Neg4 {[%clk
0:01:43.9]} 13. Bd4 {[%clk 0:01:25.5]} 13... dxe4 {[%clk 0:01:39.8]} 14. Bc4
{[%clk 0:01:08.8]} 14... Rg8 {[%clk 0:01:22.1]} 15. Nxe4 {[%clk 0:01:00.4]}
15... Rxg7 {[%clk 0:01:05.9]} 16. Nxf6 {[%clk 0:00:59.8]} 16... Qc7 {[%clk
0:00:28.6]} 17. Nd5+ {[%clk 0:00:58.2]} 1-0

[Event "*** SCC Grand Prix: Titled Tuesday Blitz"]
[Site "Chess.com"]
[Date "2020.06.23"]
[Round "3"]
[White "metalbattler"]
[Black "Volodar_Murzin"]
[Result "0-1"]
[WhiteElo "2059"]
[BlackElo "2701"]
[TimeControl "180+1"]
[EndTime "10:27:07 PDT"]
[Termination "Volodar_Murzin won on time"]

1. d4 {[%clk 0:03:00.9]} 1... Nf6 {[%clk 0:02:55.9]} 2. Bf4 {[%clk 0:03:01.3]}
2... g6 {[%clk 0:02:56.1]} 3. Nc3 {[%clk 0:03:00.6]} 3... Bg7 {[%clk 0:02:56.2]}
4. e4 {[%clk 0:02:59.8]} 4... d6 {[%clk 0:02:56.8]} 5. Qd2 {[%clk 0:03:00.2]}
5... O-O {[%clk 0:02:57]} 6. Bh6 {[%clk 0:02:59.3]} 6... c6 {[%clk 0:02:54.8]}
7. h4 {[%clk 0:02:58.7]} 7... b6 {[%clk 0:02:53.9]} 8. h5 {[%clk 0:02:58.2]}
8... b5 {[%clk 0:02:53.7]} 9. Bd3 {[%clk 0:02:45.8]} 9... e5 {[%clk 0:02:49.2]}
10. Nge2 {[%clk 0:02:41.6]} 10... Nbd7 {[%clk 0:02:46.6]} 11. hxg6 {[%clk
0:02:40.9]} 11... fxg6 {[%clk 0:02:45.9]} 12. Bxg7 {[%clk 0:02:40]} 12... Kxg7
{[%clk 0:02:46.8]} 13. Qh6+ {[%clk 0:02:40.1]} 13... Kg8 {[%clk 0:02:47.3]} 14.
O-O-O {[%clk 0:02:32.3]} 14... Rf7 {[%clk 0:02:45.6]} 15. d5 {[%clk 0:02:24.4]}
15... c5 {[%clk 0:02:41.4]} 16. Nxb5 {[%clk 0:02:20.9]} 16... Nb6 {[%clk
0:02:32.4]} 17. c4 {[%clk 0:02:09.4]} 17... Ng4 {[%clk 0:02:31.1]} 18. Qh4
{[%clk 0:01:45.3]} 18... g5 {[%clk 0:02:26.4]} 19. Qh5 {[%clk 0:01:32.1]} 19...
Nxf2 {[%clk 0:02:25]} 20. Ng3 {[%clk 0:01:12.2]} 20... Bg4 {[%clk 0:02:21.2]}
21. Qh6 {[%clk 0:01:03.5]} 21... Bxd1 {[%clk 0:02:20.1]} 22. Rxd1 {[%clk
0:00:21.8]} 22... Qf6 {[%clk 0:02:13.2]} 23. Qxf6 {[%clk 0:00:15.6]} 23... Rxf6
{[%clk 0:02:14.1]} 24. Nf5 {[%clk 0:00:16.1]} 24... Rd8 {[%clk 0:02:11.5]} 25.
Rd2 {[%clk 0:00:14.2]} 25... Nxd3+ {[%clk 0:02:11.1]} 26. Rxd3 {[%clk
0:00:15.1]} 26... Nxc4 {[%clk 0:02:05.5]} 27. Nxa7 {[%clk 0:00:12.3]} 27... Ra8
{[%clk 0:02:04.7]} 28. Nb5 {[%clk 0:00:08.7]} 28... Rxa2 {[%clk 0:02:04.9]} 29.
b3 {[%clk 0:00:05.1]} 29... Nb6 {[%clk 0:01:51.7]} 30. Nbxd6 {[%clk 0:00:01.2]}
30... Rxg2 {[%clk 0:01:51.6]} 31. Rc3 {[%clk 0:00:01.5]} 31... Nd7 {[%clk
0:01:48.8]} 0-1

[Event "*** SCC Grand Prix: Titled Tuesday Blitz"]
[Site "Chess.com"]
[Date "2020.06.23"]
[Round "3"]
[White "vladislavkovalev"]
[Black "elohunter1999"]
[Result "1-0"]
[WhiteElo "2900"]
[BlackElo "2464"]
[TimeControl "180+1"]
[EndTime "10:27:08 PDT"]
[Termination "vladislavkovalev won by resignation"]

1. e4 {[%clk 0:03:00.9]} 1... c5 {[%clk 0:02:58.5]} 2. Be2 {[%clk 0:03:00.9]}
2... Nc6 {[%clk 0:02:56]} 3. d3 {[%clk 0:03:01.8]} 3... e6 {[%clk 0:02:55.9]} 4.
f4 {[%clk 0:03:02.7]} 4... d5 {[%clk 0:02:54.9]} 5. Nf3 {[%clk 0:03:03.6]} 5...
Bd6 {[%clk 0:02:54.6]} 6. c3 {[%clk 0:03:03.7]} 6... Nge7 {[%clk 0:02:53]} 7. e5
{[%clk 0:03:04]} 7... Bc7 {[%clk 0:02:52.5]} 8. Be3 {[%clk 0:03:04.8]} 8... b6
{[%clk 0:02:50.1]} 9. d4 {[%clk 0:03:04.9]} 9... cxd4 {[%clk 0:02:43]} 10. cxd4
{[%clk 0:03:05.8]} 10... a5 {[%clk 0:02:41.1]} 11. Nc3 {[%clk 0:03:06]} 11...
Ba6 {[%clk 0:02:37.7]} 12. Nb5 {[%clk 0:02:59.6]} 12... O-O {[%clk 0:02:21.3]}
13. O-O {[%clk 0:02:59.2]} 13... f6 {[%clk 0:02:15.1]} 14. Rc1 {[%clk
0:02:57.2]} 14... Bb8 {[%clk 0:01:49.9]} 15. a3 {[%clk 0:02:43.2]} 15... Qd7
{[%clk 0:01:43.4]} 16. Qb3 {[%clk 0:02:07]} 16... a4 {[%clk 0:01:14.3]} 17. Qxa4
{[%clk 0:02:04.9]} 17... Nf5 {[%clk 0:00:54.8]} 18. Bf2 {[%clk 0:02:04.5]} 18...
fxe5 {[%clk 0:00:50.5]} 19. fxe5 {[%clk 0:02:04.5]} 19... Bb7 {[%clk 0:00:27.7]}
20. Qc2 {[%clk 0:02:03.1]} 20... Qf7 {[%clk 0:00:28.1]} 21. Bd3 {[%clk
0:01:56.5]} 21... Qh5 {[%clk 0:00:27.4]} 22. h3 {[%clk 0:01:48]} 22... Nce7
{[%clk 0:00:26.7]} 23. Kh2 {[%clk 0:01:43.7]} 23... Qh6 {[%clk 0:00:23.3]} 24.
Qd2 {[%clk 0:01:36.6]} 24... Qxd2 {[%clk 0:00:19.4]} 25. Nxd2 {[%clk 0:01:37.5]}
25... Ng6 {[%clk 0:00:20.2]} 26. Nc7 {[%clk 0:01:35.9]} 26... Ra4 {[%clk
0:00:18.7]} 27. Nxe6 {[%clk 0:01:34.5]} 27... Rf7 {[%clk 0:00:15.2]} 28. Nd8
{[%clk 0:01:35]} 28... Rd7 {[%clk 0:00:14.2]} 29. Nxb7 {[%clk 0:01:34]} 29...
Nxd4 {[%clk 0:00:14.4]} 30. Rc8+ {[%clk 0:01:31]} 1-0